bitfinex-derivatives/quotes_BTCF0:USTF0_20260314
["timestamp","ask_amount","ask_price","bid_price","bid_amount"]
[1773480169182,0.0014,70706.0,70698.0,0.042427]
[1773480169376,0.02380307,70717.0,70698.0,0.042427]
[1773480169578,0.04242,70711.0,70698.0,0.022427]
[1773480169776,0.0014,70710.0,70698.0,0.022427]
[1773480169984,0.001,70707.0,70698.0,0.022427]
[1773480170580,0.0014,70706.0,70698.0,0.022427]
[1773480170980,0.0014,70705.0,70698.0,0.022427]
[1773480171383,0.001,70707.0,70698.0,0.022427]
[1773480171683,0.0014,70706.0,70698.0,0.022427]
[1773480171984,0.0014,70705.0,70697.0,0.042427]
[1773480172287,0.0014,70705.0,70698.0,0.042427]
[1773480172473,0.00722,70711.0,70698.0,0.042427]
[1773480172678,0.02380307,70715.0,70698.0,0.042427]
[1773480172984,0.0014,70714.0,70698.0,0.042427]
[1773480173279,0.02380307,70715.0,70698.0,0.042427]
[1773480173586,0.001,70711.0,70698.0,0.022427]
[1773480173985,0.0014,70710.0,70698.0,0.022427]
[1773480174586,0.0014,70710.0,70694.0,0.02277712]
[1773480174789,0.04382,70710.0,70696.0,0.042428]
[1773480175490,0.0014,70709.0,70696.0,0.042428]
[1773480176379,0.0014,70708.0,70696.0,0.042428]
[1773480178184,0.0014,70708.0,70694.0,0.02277712]
[1773480179287,0.0014,70707.0,70694.0,0.02277712]
[1773480179785,0.0014,70706.0,70694.0,0.02277712]
[1773480179987,0.0014,70706.0,70698.0,0.042427]
[1773480180185,0.04242,70710.0,70698.0,0.042427]
[1773480180389,0.0014,70709.0,70701.0,0.042425]
[1773480180691,0.0014,70708.0,70701.0,0.042425]
[1773480180988,0.042418,70714.0,70701.0,0.042425]
[1773480180989,0.0014,70707.0,70701.0,0.042425]
[1773480181195,0.0014,70706.0,70701.0,0.042425]
[1773480181687,0.0014,70705.0,70701.0,0.022425]
[1773480182589,0.0014,70711.0,70702.0,0.042424]
[1773480182789,0.0014,70710.0,70702.0,0.042424]
[1773480183090,0.0014,70709.0,70702.0,0.042424]
[1773480183294,0.0014,70708.0,70702.0,0.042424]
[1773480183587,0.0014,70714.0,70706.0,0.042422]
[1773480183786,0.0014,70715.0,70706.0,0.0292209]
[1773480184090,0.0014,70715.0,70703.0,0.01787032]
[1773480184291,0.0014,70714.0,70705.0,0.03579333]
[1773480184488,0.042416,70716.0,70703.0,0.03711591]
[1773480184691,0.0014,70715.0,70703.0,0.03711591]
[1773480184888,0.0014,70715.0,70703.0,0.01711591]
[1773480185193,0.0014,70715.0,70704.0,0.042423]
[1773480185598,0.0014,70714.0,70704.0,0.042423]
[1773480189589,0.0014,70714.0,70705.0,0.042423]
[1773480189790,0.0014,70713.0,70705.0,0.042423]
[1773480190389,0.0014,70713.0,70706.0,0.02449442]
[1773480190993,0.0014,70713.0,70706.0,0.01395229]
[1773480191189,0.0014,70713.0,70706.0,0.00339205]
[1773480191395,0.0014,70713.0,70705.0,0.0352557]
[1773480191589,0.0014,70713.0,70705.0,0.02997632]
[1773480191794,0.0014,70713.0,70703.0,0.0239083]
[1773480191995,0.0014,70713.0,70705.0,0.042423]
[1773480192195,0.0014,70713.0,70705.0,0.06286918]
[1773480192588,0.042415,70718.0,70705.0,0.06286918]
[1773480192793,0.0014,70715.0,70705.0,0.06286918]
[1773480192996,0.0014,70714.0,70705.0,0.06286918]
[1773480193201,0.0014,70714.0,70706.0,0.042422]
[1773480199500,0.023815,70718.0,70706.0,0.042422]
[1773480199702,0.0014,70713.0,70706.0,0.042422]
[1773480199901,0.0014,70713.0,70706.0,0.022422]
[1773480201005,0.0014,70713.0,70707.0,0.042421]
[1773480203897,0.0014,70713.0,70705.0,0.042423]
[1773480212814,0.0014,70713.0,70706.0,0.042422]
[1773480215217,0.0014,70713.0,70704.0,0.042423]
[1773480216109,0.0014,70713.0,70704.0,0.022423]
[1773480218217,0.0014,70713.0,70702.0,0.16961586]
[1773480219016,0.0014,70713.0,70704.0,0.042423]
[1773480220223,0.0014,70713.0,70705.0,0.042423]
[1773480220717,0.0014,70713.0,70705.0,0.022423]
[1773480221109,0.0014,70713.0,70703.0,0.16961586]
[1773480223024,0.0014,70713.0,70702.0,0.042424]
[1773480223213,0.0014,70713.0,70703.0,0.042424]
[1773480226821,0.0014,70713.0,70704.0,0.042423]
[1773480234427,0.0014,70713.0,70705.0,0.042423]
[1773480237238,0.0014,70713.0,70699.0,0.02387115]
[1773480237639,0.0014,70713.0,70705.0,0.042423]
[1773480240040,0.0014,70713.0,70703.0,0.042424]
[1773480240248,0.0014,70713.0,70704.0,0.042423]
[1773480242540,0.0014,70713.0,70705.0,0.042423]
[1773480247251,0.0014,70713.0,70706.0,0.042422]
[1773480267676,0.0014,70713.0,70704.0,0.042423]
[1773480268973,0.0014,70713.0,70705.0,0.042423]
[1773480275782,0.0014,70712.0,70705.0,0.042423]
[1773480277282,0.0014,70712.0,70705.0,0.022423]
[1773480278385,0.0014,70711.0,70705.0,0.022423]
[1773480279476,0.0014,70711.0,70699.0,0.02387115]
[1773480279982,0.0014,70711.0,70705.0,0.042423]
[1773480280680,0.0014,70710.0,70705.0,0.042423]
[1773480280888,0.0014,70709.0,70705.0,0.042423]
[1773480281079,0.0014,70708.0,70703.0,0.042424]
[1773480281277,0.0014,70708.0,70702.0,0.042424]
[1773480281480,0.0014,70708.0,70702.0,0.022424]
[1773480282275,0.0014,70707.0,70702.0,0.022424]
[1773480282477,0.0014,70706.0,70703.0,0.042424]
[1773480283281,0.0014,70706.0,70703.0,0.022424]
[1773480285183,0.0014,70706.0,70699.0,0.02387115]
[1773480285482,0.0014,70707.0,70695.0,0.042429]
[1773480285784,0.0014,70706.0,70691.0,0.042431]
[1773480286186,0.043823,70706.0,70688.0,0.02083715]
[1773480286387,0.0014,70706.0,70694.0,0.042429]
[1773480287186,0.0014,70706.0,70694.0,0.022429]
[1773480288589,0.0007231,70715.0,70696.0,0.01076143]
[1773480288783,0.0014,70714.0,70709.0,0.04242]
[1773480288982,0.0014,70713.0,70709.0,0.04242]
[1773480289283,0.0014,70712.0,70709.0,0.04242]
[1773480289480,0.0014,70711.0,70709.0,0.04242]
[1773480289685,0.042413,70723.0,70709.0,0.04242]
[1773480289686,0.0014,70710.0,70709.0,0.04242]
[1773480290486,0.01,70734.0,70696.0,0.25152685]
[1773480290487,0.01,70734.0,70708.0,0.01013738]
[1773480290679,0.0014,70733.0,70719.0,0.01013738]
[1773480291188,3e-05,70732.0,70725.0,0.042411]
[1773480291386,0.0014,70731.0,70725.0,0.03710316]
[1773480291585,0.0014,70730.0,70725.0,0.03710316]
[1773480291781,0.0014,70729.0,70725.0,0.05333549]
[1773480291979,0.0014,70733.0,70725.0,0.01092549]
[1773480292175,0.0014,70732.0,70728.0,0.042409]
[1773480292582,0.042401,70742.0,70728.0,0.042409]
[1773480292886,0.0014,70741.0,70728.0,0.042409]
[1773480293391,0.1291203,70755.0,70728.0,0.042409]
[1773480293392,0.0014,70754.0,70744.0,0.042399]
[1773480293574,0.0014,70753.0,70744.0,0.042399]
[1773480293778,0.042391,70759.0,70740.0,0.00369988]
[1773480293779,0.0014,70752.0,70745.0,0.042399]
[1773480293975,0.02868839,70767.0,70736.0,0.0014]
[1773480294186,0.042387,70765.0,70751.0,0.042395]
[1773480294385,0.042387,70765.0,70751.0,0.03689414]
[1773480294984,0.07107599,70765.0,70751.0,0.03689414]
[1773480296081,0.07207599,70765.0,70751.0,0.03689414]
[1773480296986,0.07307599,70765.0,70751.0,0.03689414]
[1773480297687,0.02924359,70752.0,70725.0,0.1691216]
[1773480297890,0.02924359,70750.0,70738.0,0.042403]
[1773480298191,0.002,70765.0,70738.0,0.042403]
[1773480298192,0.03064359,70749.0,70738.0,0.042403]
[1773480298388,0.0014,70748.0,70738.0,0.042403]
[1773480298892,0.0014,70748.0,70739.0,0.042402]
[1773480301995,0.02934639,70746.0,70734.0,0.042405]
[1773480302193,0.0014,70748.0,70735.0,0.042404]
[1773480303194,0.0024,70748.0,70735.0,0.042404]
[1773480303493,0.0014,70748.0,70735.0,0.042404]
[1773480303696,0.0024,70748.0,70735.0,0.042404]
[1773480303894,0.0034,70748.0,70735.0,0.042404]
[1773480304796,0.0014,70747.0,70740.0,0.042402]
[1773480308001,0.0024,70747.0,70740.0,0.042402]
[1773480313704,0.0014,70747.0,70740.0,0.042402]
[1773480321614,0.0014,70747.0,70738.0,0.042403]
[1773480322809,0.0014,70747.0,70728.0,0.1691216]
[1773480323211,0.0014,70747.0,70727.0,0.0014]
[1773480325017,0.0014,70747.0,70736.0,0.042404]
[1773480326310,0.0014,70747.0,70737.0,0.042403]
[1773480332414,0.0014,70747.0,70727.0,0.0014]
[1773480332620,0.0014,70747.0,70737.0,0.042403]
[1773480332815,0.0014,70747.0,70738.0,0.042403]
[1773480334717,0.042396,70751.0,70738.0,0.042403]
[1773480334922,0.0014,70746.0,70738.0,0.042403]
[1773480335321,0.0014,70745.0,70738.0,0.042403]
[1773480336219,0.042396,70751.0,70738.0,0.042403]
[1773480336519,0.0014,70750.0,70738.0,0.042403]
[1773480336717,0.042394,70753.0,70731.0,0.1691216]
[1773480336922,0.0014,70749.0,70729.0,0.1691216]
[1773480337219,0.042394,70753.0,70729.0,0.1691216]
[1773480337420,0.02933934,70761.0,70729.0,0.1691216]
[1773480337623,0.042393,70755.0,70735.0,0.1691216]
[1773480338127,0.042393,70755.0,70734.0,0.1691216]
[1773480339026,0.042393,70755.0,70741.0,0.042401]
[1773480339624,0.042394,70753.0,70741.0,0.042401]
[1773480339814,0.0014,70752.0,70741.0,0.042401]
[1773480348228,0.0024,70752.0,70741.0,0.042401]
[1773480348731,0.0024,70752.0,70731.0,0.1691216]
[1773480348933,0.0014,70752.0,70731.0,0.1691216]
[1773480349929,0.0014,70752.0,70743.0,0.0424]
[1773480351931,0.0014,70752.0,70744.0,0.042399]
[1773480357335,0.0014,70752.0,70732.0,0.1691216]
[1773480357534,0.042389,70762.0,70749.0,0.042396]
[1773480357839,0.1416,70799.0,70749.0,0.03165851]
[1773480357840,0.04379,70761.0,70749.0,0.03165851]
[1773480358038,0.02874472,70770.0,70733.0,0.1691216]
[1773480358039,0.0014,70760.0,70736.0,0.042404]
[1773480358227,0.0014,70759.0,70736.0,0.042404]
[1773480358426,0.0014,70758.0,70736.0,0.042404]
[1773480358631,0.0014,70757.0,70736.0,0.042404]
[1773480358838,0.0014,70756.0,70736.0,0.042404]
[1773480359344,0.0014,70756.0,70749.0,0.042396]
[1773480359838,0.0014,70756.0,70750.0,0.042396]
[1773480360835,0.0712183,70755.0,70742.0,0.0424]
[1773480361040,0.0288253,70755.0,70743.0,0.0424]
[1773480362135,0.0288253,70755.0,70744.0,0.042399]
[1773480362335,0.0298253,70755.0,70727.0,0.16892055]
[1773480362538,0.02877137,70753.0,70742.0,0.0424]
[1773480362745,0.02877137,70753.0,70742.0,0.03951146]
[1773480369950,0.0014,70756.0,70727.0,0.0014]
[1773480370145,0.07318515,70756.0,70727.0,0.0014]
[1773480370650,0.07180483,70755.0,70742.0,0.0424]
[1773480370948,0.07180583,70754.0,70742.0,0.0424]
[1773480377457,0.07180583,70754.0,70743.0,0.0424]
[1773480378362,0.043792,70756.0,70743.0,0.0424]
[1773480378752,0.07389471,70756.0,70743.0,0.0424]
[1773480378956,0.03010271,70755.0,70743.0,0.0424]
[1773480381360,0.07249571,70755.0,70743.0,0.0424]
[1773480387261,0.042393,70755.0,70743.0,0.0424]
[1773480387462,0.0014,70754.0,70743.0,0.0424]
[1773480393166,0.07299806,70754.0,70741.0,0.042401]
[1773480393470,0.07299806,70754.0,70742.0,0.0424]
[1773480395772,0.0014,70754.0,70745.0,0.042399]
[1773480396671,0.0014,70753.0,70745.0,0.042399]
[1773480396971,0.042392,70757.0,70745.0,0.042399]
[1773480397173,0.042392,70757.0,70718.0,0.46135141]
[1773480397174,0.042404,70737.0,70721.0,0.0074113]
[1773480397361,0.0014,70736.0,70721.0,0.0074113]
[1773480397965,0.0014,70736.0,70705.0,0.00717584]
[1773480398166,0.042405,70735.0,70722.0,0.042412]
[1773480398371,0.042405,70735.0,70724.0,0.002]
[1773480398962,0.042405,70735.0,70724.0,0.001]
[1773480399769,0.042405,70735.0,70722.0,0.042412]
[1773480400868,0.042405,70735.0,70723.0,0.042412]
[1773480401074,0.042405,70735.0,70715.0,0.00717584]
[1773480401075,0.0014,70736.0,70715.0,0.00717584]
[1773480401970,0.0014,70736.0,70706.0,0.0014]
[1773480402171,0.19983995,70735.0,70707.0,0.01666249]
[1773480402375,0.043805,70736.0,70723.0,0.042412]
[1773480402580,0.19977423,70735.0,70723.0,0.042412]
[1773480402876,0.043805,70736.0,70724.0,0.042411]
[1773480403070,0.0014,70736.0,70725.0,0.042411]
[1773480403271,0.19977367,70735.0,70725.0,0.042411]
[1773480403472,0.19977367,70734.0,70725.0,0.042411]
[1773480403674,0.0014,70736.0,70725.0,0.042411]
[1773480403863,0.19972039,70735.0,70725.0,0.042411]
[1773480404068,0.19972039,70734.0,70725.0,0.042411]
[1773480404270,0.0014,70736.0,70725.0,0.042411]
[1773480404478,0.19967519,70735.0,70725.0,0.042411]
[1773480404678,0.0014,70736.0,70725.0,0.042411]
[1773480404871,0.19967519,70735.0,70725.0,0.042411]
[1773480405173,0.0014,70734.0,70725.0,0.042411]
[1773480405578,0.042403,70738.0,70725.0,0.042411]
[1773480405876,0.20103697,70737.0,70725.0,0.042411]
[1773480406078,0.19963697,70736.0,70725.0,0.042411]
[1773480406277,0.0014,70735.0,70725.0,0.042411]
[1773480406668,0.0014,70734.0,70725.0,0.042411]
[1773480407070,0.042403,70738.0,70725.0,0.042411]
[1773480407372,0.20100377,70737.0,70725.0,0.042411]
[1773480407571,0.19960377,70736.0,70725.0,0.042411]
[1773480407774,0.20100377,70735.0,70725.0,0.042411]
[1773480408075,0.19960377,70734.0,70725.0,0.042411]
[1773480408275,0.0014,70733.0,70725.0,0.042411]
[1773480408672,0.0014,70732.0,70725.0,0.042411]
[1773480409072,0.042403,70738.0,70725.0,0.042411]
[1773480409278,0.2009529,70737.0,70725.0,0.042411]
[1773480409580,0.1995529,70736.0,70725.0,0.042411]
[1773480409779,0.2009529,70735.0,70725.0,0.042411]
[1773480410078,0.1995529,70734.0,70725.0,0.042411]
[1773480410276,0.0014,70733.0,70725.0,0.042411]
[1773480410671,0.0014,70732.0,70725.0,0.042411]
[1773480411177,0.042403,70738.0,70725.0,0.042411]
[1773480411381,0.20092187,70737.0,70725.0,0.042411]
[1773480411575,0.19952187,70736.0,70725.0,0.042411]
[1773480411881,0.20092187,70735.0,70725.0,0.042411]
[1773480412083,0.19952187,70734.0,70725.0,0.042411]
[1773480412384,0.0014,70733.0,70725.0,0.042411]
[1773480412678,0.042403,70738.0,70725.0,0.042411]
[1773480412988,0.0014,70732.0,70725.0,0.042411]
[1773480413175,0.042403,70738.0,70725.0,0.042411]
[1773480413480,0.20092108,70737.0,70725.0,0.042411]
[1773480413680,0.19952108,70736.0,70725.0,0.042411]
[1773480413982,0.20092108,70735.0,70725.0,0.042411]
[1773480414170,0.19952108,70734.0,70725.0,0.042411]
[1773480414375,0.19952108,70733.0,70725.0,0.042411]
[1773480414574,0.19952108,70732.0,70725.0,0.042411]
[1773480414785,0.0014,70735.0,70725.0,0.042411]
[1773480414985,0.19952643,70734.0,70725.0,0.042411]
[1773480415289,0.19952643,70733.0,70725.0,0.042411]
[1773480415481,0.19952643,70732.0,70725.0,0.042411]
[1773480415683,0.0014,70735.0,70725.0,0.042411]
[1773480415986,0.19953571,70734.0,70725.0,0.042411]
[1773480416183,0.19953571,70733.0,70725.0,0.042411]
[1773480416386,0.19953571,70732.0,70725.0,0.042411]
[1773480416583,0.0014,70735.0,70725.0,0.042411]
[1773480416887,0.19954931,70734.0,70725.0,0.042411]
[1773480417086,0.19954931,70733.0,70725.0,0.042411]
[1773480417288,0.19954931,70732.0,70725.0,0.042411]
[1773480417488,0.19954931,70731.0,70725.0,0.042411]
[1773480417788,0.0014,70735.0,70725.0,0.042411]
[1773480417989,0.19956706,70734.0,70725.0,0.042411]
[1773480418188,0.19956706,70733.0,70725.0,0.042411]
[1773480418384,0.19956706,70732.0,70725.0,0.042411]
[1773480418583,0.19956706,70731.0,70725.0,0.042411]
[1773480418783,0.0014,70735.0,70725.0,0.042411]
[1773480418984,0.19958983,70734.0,70725.0,0.042411]
[1773480419286,0.19958983,70733.0,70725.0,0.042411]
[1773480419488,0.19958983,70732.0,70725.0,0.042411]
[1773480419792,0.19958983,70731.0,70725.0,0.042411]
[1773480419989,0.0014,70735.0,70725.0,0.042411]
[1773480420184,0.19961792,70734.0,70725.0,0.042411]
[1773480420383,0.19961792,70733.0,70725.0,0.042411]
[1773480420588,0.19961792,70732.0,70725.0,0.042411]
[1773480420787,0.19961792,70731.0,70718.0,0.01227358]
[1773480420988,0.0014,70735.0,70725.0,0.042411]
[1773480421291,0.19965169,70734.0,70725.0,0.042411]
[1773480421492,0.19965169,70733.0,70725.0,0.042411]
[1773480421682,0.19965169,70732.0,70725.0,0.042411]
[1773480421883,0.19965169,70731.0,70725.0,0.042411]
[1773480422090,0.19965169,70730.0,70725.0,0.042411]
[1773480422388,0.0014,70729.0,70725.0,0.042411]
[1773480422578,0.0014,70728.0,70725.0,0.042411]
[1773480422791,0.0014,70727.0,70725.0,0.042411]
[1773480423992,0.0014,70727.0,70718.0,0.01227358]
[1773480425094,0.0014,70727.0,70724.0,0.042411]
[1773480431205,0.0014,70731.0,70724.0,0.042411]
[1773480431900,0.0014,70730.0,70714.0,0.013811]
[1773480432102,0.0014,70729.0,70724.0,0.042411]
[1773480433105,0.0014,70729.0,70724.0,0.041401]
[1773480433401,0.005,70746.0,70712.0,0.0014]
[1773480433402,0.042402,70741.0,70713.0,0.02446527]
[1773480433609,0.0014,70740.0,70727.0,0.04241]
[1773480433807,0.043802,70740.0,70727.0,0.04241]
[1773480434303,0.042402,70740.0,70727.0,0.04241]
[1773480434504,0.043803,70739.0,70727.0,0.04241]
[1773480435005,0.0014,70738.0,70727.0,0.04241]
[1773480435207,0.0014,70737.0,70727.0,0.04241]
[1773480435400,0.042403,70739.0,70727.0,0.04241]
[1773480435601,0.0014,70738.0,70727.0,0.04241]
[1773480436001,0.0014,70737.0,70727.0,0.04241]
[1773480436202,0.06913481,70742.0,70729.0,0.042408]
[1773480436402,0.0014,70741.0,70729.0,0.042408]
[1773480436602,0.0014,70741.0,70730.0,0.042407]
[1773480436812,0.0014,70740.0,70730.0,0.042408]
[1773480437213,0.042401,70743.0,70730.0,0.042408]
[1773480437405,0.0014,70742.0,70730.0,0.042408]
[1773480437712,0.0014,70741.0,70730.0,0.042408]
[1773480438307,0.042401,70742.0,70728.0,0.042409]
[1773480438611,0.0014,70740.0,70728.0,0.042409]
[1773480438812,0.042401,70742.0,70728.0,0.042409]
[1773480439012,0.0014,70739.0,70728.0,0.042409]
[1773480446409,0.0014,70738.0,70728.0,0.042409]
[1773480446814,0.042402,70741.0,70728.0,0.042409]
[1773480447014,0.042403,70739.0,70727.0,0.042409]
[1773480450123,0.0567,70736.0,70727.0,0.042409]
[1773480453022,0.0567,70736.0,70729.0,0.042408]
[1773480455627,0.0567,70736.0,70730.0,0.042407]
[1773480456037,0.0014,70735.0,70730.0,0.042407]
[1773480456333,0.0567,70736.0,70730.0,0.042407]
[1773480456522,0.0014,70735.0,70730.0,0.042407]
[1773480456922,0.0014,70734.0,70730.0,0.042407]
[1773480457329,0.0567,70736.0,70730.0,0.042407]
[1773480457533,0.0014,70735.0,70730.0,0.042407]
[1773480457829,0.0567,70736.0,70730.0,0.042407]
[1773480458031,0.0014,70735.0,70730.0,0.042407]
[1773480458531,0.0014,70734.0,70728.0,0.042409]
[1773480463339,0.005,70746.0,70729.0,0.02954565]
[1773480463543,0.042401,70742.0,70730.0,0.042408]
[1773480463739,0.06958281,70742.0,70730.0,0.042408]
[1773480463933,0.02718181,70742.0,70730.0,0.042408]
[1773480464241,0.02718181,70742.0,70731.0,0.042407]
[1773480466344,0.0424,70744.0,70731.0,0.042407]
[1773480468443,0.0434,70744.0,70731.0,0.042407]
[1773480472935,0.0434,70744.0,70732.0,0.042407]
[1773480474543,0.0424,70744.0,70732.0,0.042407]
[1773480474841,0.0434,70744.0,70732.0,0.042407]
[1773480476444,0.07186869,70744.0,70732.0,0.042407]
[1773480476643,0.02846869,70743.0,70732.0,0.042407]
[1773480477845,0.07086969,70742.0,70730.0,0.042408]
[1773480478546,0.02846869,70742.0,70731.0,0.042407]
[1773480483947,0.02846869,70738.0,70719.0,0.25395584]
[1773480484242,0.0014,70745.0,70716.0,0.042416]
[1773480484243,0.02846869,70728.0,70716.0,0.042416]
[1773480484442,0.02986869,70727.0,70716.0,0.032416]
[1773480484641,0.02846869,70726.0,70713.0,0.042418]
[1773480485250,0.02846869,70726.0,70714.0,0.042417]
[1773480487055,0.02846869,70725.0,70704.0,0.01599799]
[1773480487353,0.02846869,70725.0,70712.0,0.042418]
[1773480487956,0.02846869,70724.0,70712.0,0.042418]
[1773480488848,0.02846869,70724.0,70713.0,0.042418]
[1773480489756,0.02846869,70724.0,70714.0,0.042417]
[1773480491258,0.02846869,70724.0,70714.0,0.032567]
[1773480492158,0.0014,70727.0,70704.0,0.01522673]
[1773480492460,0.0014,70726.0,70718.0,0.042415]
[1773480492954,0.042408,70730.0,70718.0,0.042415]
[1773480493151,0.0014,70729.0,70718.0,0.042415]
[1773480493551,0.0014,70728.0,70718.0,0.042415]
[1773480494052,0.0014,70727.0,70718.0,0.042415]
[1773480494460,0.042408,70730.0,70718.0,0.042415]
[1773480494660,0.0014,70729.0,70718.0,0.042415]
[1773480495053,0.0014,70728.0,70718.0,0.042415]
[1773480495257,0.0014,70728.0,70718.0,0.032415]
[1773480495557,0.0014,70727.0,70718.0,0.032415]
[1773480496061,0.0014,70726.0,70718.0,0.032415]
[1773480496450,0.042408,70730.0,70718.0,0.032415]
[1773480496650,0.0014,70729.0,70718.0,0.032415]
[1773480497053,0.0014,70728.0,70704.0,0.25395584]
[1773480497359,0.04131592,70739.0,70702.0,0.0001237]
[1773480497360,0.02846869,70724.0,70713.0,0.042418]
[1773480497556,0.02846869,70722.0,70713.0,0.03716359]
[1773480497755,0.0014,70721.0,70713.0,0.03716359]
[1773480498363,0.0014,70721.0,70713.0,0.03502359]
[1773480502262,0.0014,70721.0,70713.0,0.03018359]
[1773480505455,0.042416,70718.0,70706.0,0.042422]
[1773480505658,0.02758804,70720.0,70708.0,0.042421]
[1773480505950,0.042415,70718.0,70707.0,0.042422]
[1773480506163,0.042415,70718.0,70702.0,0.0001237]
[1773480506458,0.07000304,70718.0,70702.0,0.0001237]
[1773480506662,0.07000304,70718.0,70706.0,0.042422]
[1773480506862,0.02758804,70717.0,70706.0,0.042422]
[1773480507062,0.02758804,70716.0,70702.0,0.0001237]
[1773480507262,0.02758804,70715.0,70702.0,0.0001237]
[1773480507757,0.0014,70714.0,70702.0,0.0001237]
[1773480507960,0.0014,70714.0,70703.0,0.042424]
[1773480508658,0.02758804,70712.0,70702.0,0.0001237]
[1773480508860,0.07000704,70712.0,70702.0,0.0001237]
[1773480509160,0.04242,70710.0,70702.0,0.0001237]
[1773480509360,0.07000804,70710.0,70702.0,0.0001237]
[1773480512659,0.02758804,70709.0,70702.0,0.0001237]
[1773480512859,0.0014,70708.0,70702.0,0.0001237]
[1773480513059,0.0014,70708.0,70697.0,0.042428]
[1773480514169,0.0001237,70707.0,70697.0,0.042428]
[1773480515171,0.0001237,70707.0,70698.0,0.042427]
[1773480544486,0.0014,70715.0,70705.0,0.00477665]
[1773480544683,0.45559612,70739.0,70702.0,0.042425]
[1773480544684,0.0014,70714.0,70702.0,0.042425]
[1773480544889,0.0014,70714.0,70685.0,0.31420231]
[1773480544890,0.042421,70709.0,70696.0,0.042428]
[1773480545090,0.0014,70708.0,70697.0,0.042427]
[1773480545289,0.0014,70708.0,70698.0,0.042427]
[1773480547489,0.0014,70708.0,70696.0,0.042428]
[1773480547688,0.0014,70708.0,70697.0,0.042427]
[1773480548988,0.0014,70708.0,70697.0,0.04654173]
[1773480549192,0.042419,70712.0,70697.0,0.04654173]
[1773480549193,0.042418,70714.0,70697.0,0.00411473]
[1773480549394,0.0014,70713.0,70697.0,0.00411473]
[1773480550095,0.0252305,70724.0,70703.0,0.00378735]
[1773480550291,0.0252305,70724.0,70704.0,0.00357071]
[1773480550292,0.001,70714.0,70704.0,0.00357071]
[1773480550594,0.0014,70713.0,70704.0,0.00357071]
[1773480550790,0.0014,70712.0,70704.0,0.00357071]
[1773480551296,0.0014,70711.0,70701.0,0.042425]
[1773480551690,0.001,70713.0,70701.0,0.042425]
[1773480551897,0.0014,70712.0,70701.0,0.042425]
[1773480552093,0.0014,70712.0,70702.0,0.042424]
[1773480552498,0.0014,70711.0,70702.0,0.042424]
[1773480553097,0.0014,70710.0,70702.0,0.042424]
[1773480553290,0.0014,70710.0,70700.0,0.00345428]
[1773480553486,0.0014,70709.0,70702.0,0.042424]
[1773480553697,0.4192802,70732.0,70702.0,0.042424]
[1773480553698,0.0014,70708.0,70702.0,0.042424]
[1773480553898,0.02529023,70722.0,70702.0,0.04504943]
[1773480554097,0.0014,70721.0,70702.0,0.04504943]
[1773480554603,0.042417,70716.0,70702.0,0.04504943]
[1773480554799,0.0014,70720.0,70702.0,0.00262543]
[1773480555103,0.043814,70720.0,70693.0,0.00239699]
[1773480555604,0.042415,70719.0,70693.0,0.0021734]
[1773480557002,0.042415,70719.0,70705.0,0.042422]
[1773480557203,0.043415,70719.0,70705.0,0.042422]
[1773480557801,0.044415,70719.0,70705.0,0.042422]
[1773480558203,0.043415,70719.0,70705.0,0.042422]
[1773480558500,0.044415,70719.0,70705.0,0.042422]
[1773480558701,0.02737199,70719.0,70703.0,0.042424]
[1773480558904,0.042417,70716.0,70704.0,0.042423]
[1773480559101,0.042415,70718.0,70704.0,0.042423]
[1773480559403,0.042415,70718.0,70705.0,0.042423]
[1773480560006,0.042416,70716.0,70703.0,0.042424]
[1773480560304,0.043415,70718.0,70704.0,0.042423]
[1773480560605,0.06880491,70718.0,70704.0,0.042423]
[1773480561000,0.06980491,70718.0,70704.0,0.042423]
[1773480562103,0.042416,70717.0,70704.0,0.042423]
[1773480562707,0.042417,70716.0,70704.0,0.042423]
[1773480563294,0.02637868,70717.0,70704.0,0.042423]
[1773480563493,0.02637868,70717.0,70705.0,0.042423]
[1773480563905,0.06879468,70717.0,70705.0,0.042423]
[1773480564105,0.043416,70717.0,70705.0,0.042423]
[1773480564708,0.042416,70717.0,70705.0,0.042423]
[1773480565511,0.001,70717.0,70699.0,0.00047251]
[1773480565712,1e-06,70717.0,70708.0,0.042421]
[1773480566113,0.0014,70716.0,70708.0,0.042421]
[1773480567415,0.0014,70716.0,70706.0,0.042422]
[1773480568911,0.0014,70716.0,70695.0,0.0150964]
[1773480569714,0.0014,70716.0,70704.0,0.042423]
[1773480573215,0.0014,70716.0,70705.0,0.042423]
[1773480573516,0.0014,70716.0,70698.0,0.01418505]
[1773480573718,0.0014,70716.0,70703.0,0.042424]
[1773480573913,0.02320541,70711.0,70692.0,0.25395584]
[1773480574119,0.042423,70706.0,70690.0,0.01395425]
[1773480574416,0.0014,70705.0,70690.0,0.01395425]
[1773480575007,0.0014,70705.0,70694.0,0.042429]
[1773480577016,0.043823,70705.0,70692.0,0.042431]
[1773480580122,0.042425,70702.0,70690.0,0.042431]
[1773480580822,0.042424,70704.0,70690.0,0.042431]
[1773480581214,0.042424,70704.0,70691.0,0.042431]
[1773480581719,0.0014,70705.0,70686.0,0.01451358]
[1773480582920,0.042424,70704.0,70692.0,0.04243]
[1773480587019,0.0014,70705.0,70686.0,0.01311358]
[1773480587222,0.042425,70702.0,70690.0,0.042432]
[1773480588825,0.02425796,70715.0,70689.0,0.01058236]
[1773480589017,0.02425796,70713.0,70695.0,0.042429]
[1773480589215,0.042403,70740.0,70696.0,0.042428]
[1773480589216,0.02565796,70712.0,70696.0,0.042428]
[1773480589416,0.0014,70711.0,70696.0,0.042428]
[1773480589720,0.04382,70711.0,70698.0,0.042427]
[1773480590316,0.38145318,70746.0,70689.0,0.17234767]
[1773480590317,0.0014,70716.0,70708.0,0.04432516]
[1773480590522,0.0014,70715.0,70708.0,0.04432516]